fUSD/lending_fUSD_20250602
["ID","MTS","AMOUNT","RATE_DAILY","PERIOD"]
[363842271,1748895371765,460.0,0.00041095,120]
[363842272,1748895371846,334.872844,0.00041095,120]
[363842273,1748895371979,460.0,0.00041095,120]
[363842274,1748895372032,460.0,0.00041095,120]
[363842275,1748895372625,182.84,0.00034247,120]
[363842276,1748895372847,1478.15,0.00041095,120]
[363842277,1748895372953,182.84,0.00041096,120]
[363842278,1748895373593,946.47,0.00041095,120]
[363842279,1748895373692,460.0,0.00041095,120]
[363842280,1748895374635,460.0,0.00041095,120]
[363842281,1748895375408,460.0,0.00041095,120]
[363842282,1748895376371,460.0,0.00041095,120]
[363842283,1748895377243,460.0,0.00041095,120]
[363842284,1748895377344,460.0,0.00041095,120]
[363842285,1748895377388,460.0,0.00041095,120]
[363842286,1748895377774,460.0,0.00041095,120]
[363842287,1748895377916,460.0,0.00041095,120]
[363842288,1748895378580,460.0,0.00041095,120]
[363842289,1748895378635,460.0,0.00041095,120]
[363842290,1748895379822,460.0,0.00041095,120]
[363842291,1748895380018,460.0,0.00041095,120]
[363842292,1748895380761,727.46,0.00041095,120]
[363842293,1748895382359,309.75413539,0.00041095,120]
[363842294,1748895382680,567.56,0.00041095,120]
[363842295,1748895382895,460.0,0.00041095,120]
[363842296,1748895383762,460.0,0.00041095,120]
[363842297,1748895383879,460.0,0.00041095,120]
[363842298,1748895384289,460.0,0.00041095,120]
[363842299,1748895384333,460.0,0.00041095,120]
[363842300,1748895384416,2597.01,0.00041095,120]
[363842301,1748895384521,460.0,0.00041095,120]
[363842302,1748895384803,460.0,0.00041095,120]
[363842303,1748895384870,460.0,0.00041095,120]
[363842304,1748895384933,460.0,0.00041095,120]
[363842305,1748895385325,460.0,0.00041095,120]
[363842306,1748895386553,420.40034678,0.00041095,120]
[363842307,1748895387582,460.0,0.00041095,120]
[363842308,1748895388134,306.28078328,0.00041095,120]
[363842309,1748895388688,460.0,0.00041095,120]
[363842310,1748895388742,460.0,0.00041095,120]
[363842311,1748895388788,775.14,0.00041095,120]
[363842312,1748895390410,467.03187328,0.00041095,120]
[363842313,1748895390466,460.0,0.00041095,120]
[363842314,1748895391176,460.0,0.00041095,120]
[363842315,1748895391626,460.0,0.00041095,120]
[363842316,1748895392610,460.0,0.00041095,120]
[363842317,1748895393393,460.0,0.00041095,120]
[363842318,1748895393476,460.0,0.00041095,120]
[363842319,1748895393541,460.0,0.00041095,120]
[363842320,1748895393744,420.0,0.00041095,120]
[363842321,1748895394409,460.0,0.00041095,120]
[363842322,1748895394681,460.0,0.00041095,120]
[363842323,1748895394819,460.0,0.00041095,120]
[363842324,1748895394948,460.0,0.00041095,120]
[363842325,1748895395149,460.0,0.00041095,120]
[363842326,1748895395772,460.0,0.00041095,120]
[363842327,1748895395814,460.0,0.00041095,120]
[363842328,1748895395926,460.0,0.00041095,120]
[363842329,1748895396353,250.0,0.00041095,120]
[363842330,1748895396675,460.0,0.00041095,120]
[363842331,1748895397144,607.41,0.00041095,120]
[363842332,1748895397258,460.0,0.00041095,120]
[363842333,1748895397857,560.45,0.00041095,120]
[363842334,1748895398566,460.0,0.00041095,120]
[363842335,1748895398802,460.0,0.00041095,120]
[363842336,1748895399480,460.0,0.00041095,120]
[363842337,1748895400070,420.0,0.00041095,120]
[363842338,1748895400943,460.0,0.00041095,120]
[363842339,1748895402885,516.79,0.00041095,120]
[363842340,1748895402929,460.0,0.00041095,120]
[363842341,1748895403693,460.0,0.00041095,120]
[363842342,1748895404264,420.0,0.00041095,120]
[363842343,1748895404642,780.9,0.00041095,120]
[363842344,1748895405396,460.0,0.00041095,120]
[363842345,1748895405667,520.73,0.00041095,120]
[363842346,1748895405722,460.0,0.00041095,120]
[363842347,1748895405768,460.0,0.00041095,120]
[363842348,1748895405940,460.0,0.00041095,120]
[363842349,1748895406175,460.0,0.00041095,120]
[363842350,1748895406224,460.0,0.00041095,120]
[363842351,1748895407898,460.0,0.00041095,120]
[363842352,1748895408811,460.0,0.00041095,120]
[363842353,1748895408970,460.0,0.00041095,120]
[363842354,1748895409296,460.0,0.00041095,120]
[363842355,1748895409763,460.0,0.00041095,120]
[363842356,1748895411393,2256.99,0.00041095,120]
[363842357,1748895411672,460.0,0.00041095,120]
[363842358,1748895413466,1987.0,0.00041096,120]
[363842359,1748895413578,420.0,0.00041095,120]
[363842360,1748895413621,460.0,0.00041095,120]
[363842361,1748895414296,460.0,0.00041095,120]
[363842362,1748895414539,460.0,0.00041095,120]
[363842363,1748895414675,420.0,0.00041095,120]
[363842364,1748895414923,460.0,0.00041095,120]
[363842365,1748895415508,460.0,0.00041095,120]
[363842366,1748895415556,460.0,0.00041095,120]
[363842367,1748895416163,460.0,0.00041095,120]
[363842368,1748895416781,460.0,0.00041095,120]
[363842369,1748895416833,629.72,0.00041095,120]
[363842370,1748895416887,460.0,0.00041095,120]
[363842371,1748895418821,460.0,0.00041095,120]
[363842372,1748895419036,460.0,0.00041095,120]
[363842373,1748895420641,460.0,0.00041095,120]
[363842374,1748895420934,380.0,0.00041095,120]
[363842375,1748895421248,527.81,0.00041095,120]
[363842376,1748895421327,945.9,0.00041095,120]
[363842377,1748895421375,608.01,0.00041095,120]
[363842378,1748895421721,460.0,0.00041095,120]
[363842379,1748895422092,460.0,0.00041095,120]
[363842380,1748895422175,557.29911552,0.00041095,120]
[363842381,1748895422539,460.0,0.00041095,120]
[363842382,1748895424374,460.0,0.00041095,120]
[363842383,1748895424509,460.0,0.00041095,120]
[363842384,1748895424804,633.28,0.00041095,120]
[363842385,1748895425570,460.0,0.00041095,120]
[363842386,1748895425881,460.0,0.00041095,120]
[363842387,1748895426533,380.0,0.00041095,120]
[363842388,1748895426609,460.0,0.00041095,120]
[363842389,1748895427598,460.0,0.00041095,120]
[363842390,1748895428176,576.39,0.00041095,120]
[363842391,1748895428327,2240.97,0.00041095,120]
[363842392,1748895428796,732.82,0.00041095,120]
[363842393,1748895429213,544.82,0.00041095,120]
[363842394,1748895429591,460.0,0.00041095,120]
[363842395,1748895429635,460.0,0.00041095,120]
[363842396,1748895430266,622.48,0.00041095,120]
[363842397,1748895430313,460.0,0.00041095,120]
[363842398,1748895430455,460.0,0.00041095,120]
[363842399,1748895430946,460.0,0.00041095,120]
[363842400,1748895431032,460.0,0.00041095,120]
[363842401,1748895431658,420.0,0.00041095,120]
[363842402,1748895432030,460.0,0.00041095,120]
[363842403,1748895433368,460.0,0.00041095,120]
[363842404,1748895433587,460.0,0.00041095,120]
[363842405,1748895434432,460.0,0.00041095,120]
[363842406,1748895434523,420.0,0.00041095,120]
[363842407,1748895434577,460.0,0.00041095,120]
[363842408,1748895435432,460.0,0.00041095,120]
[363842409,1748895435980,425.92799779,0.00041095,120]
[363842410,1748895436030,460.0,0.00041095,120]
[363842411,1748895436338,460.0,0.00041095,120]
[363842412,1748895436401,460.0,0.00041095,120]
[363842413,1748895436447,460.0,0.00041095,120]
[363842414,1748895436498,217.6339914,0.00041095,120]
[363842415,1748895436715,460.0,0.00041095,120]
[363842416,1748895437405,478.73567937,0.00041095,120]
[363842417,1748895438293,2287.82,0.00041095,120]
[363842418,1748895438795,460.0,0.00041095,120]
[363842419,1748895438901,420.0,0.00041095,120]
[363842420,1748895439774,460.0,0.00041095,120]
[363842421,1748895440267,460.0,0.00041095,120]
[363842422,1748895440317,460.0,0.00041095,120]
[363842423,1748895440677,300.0,0.00041095,120]
[363842424,1748895441020,460.0,0.00041095,120]
[363842425,1748895441073,460.0,0.00041095,120]
[363842426,1748895441189,1501.91,0.00041095,120]
[363842427,1748895441233,460.0,0.00041095,120]
[363842428,1748895441284,460.0,0.00041095,120]
[363842429,1748895442144,388.49469922,0.00041095,120]
[363842430,1748895442272,467.07,0.00041095,120]
[363842431,1748895442635,3245.54,0.00041095,120]
[363842432,1748895442731,460.0,0.00041095,120]
[363842433,1748895443007,460.0,0.00041095,120]
[363842434,1748895443070,380.0,0.00041095,120]
[363842435,1748895444342,420.0,0.00041095,120]
[363842436,1748895444936,460.0,0.00041095,120]
[363842437,1748895444984,460.0,0.00041095,120]
[363842438,1748895446287,420.0,0.00041095,120]
[363842439,1748895446527,2782.89507825,0.00041095,120]
[363842440,1748895493637,468.91907476,0.00039772,120]
[363842443,1748895917266,2866.93301798,0.00039778,120]
[363842444,1748895920065,189.73396177,0.00039778,120]
[363842445,1748895920928,953.81376409,0.00039778,120]
[363842446,1748895923612,1574.77413526,0.00039778,120]
[363842447,1748895923891,193.32158135,0.00039778,120]
[363842448,1748895931950,2414.40535512,0.00039778,120]
[363842450,1748895940430,2360.0,0.00039778,120]
[363842451,1748895941295,549.49157725,0.00039778,120]
[363842452,1748895941475,437.57012132,0.00039778,120]
[363842453,1748895943634,1358.02026131,0.00039778,120]
[363842454,1748895963876,231.23940436,0.00039778,120]
[363842455,1748895965569,1758.79951871,0.00039778,120]
[363842456,1748895966086,1513.15479096,0.00039778,120]
[363842457,1748895968600,229.6361382,0.00039778,120]
[363842461,1748895970211,198.69921722,0.00039778,120]
[363842462,1748895973663,2918.4030571,0.00039778,120]
[363842463,1748895974945,929.45230127,0.00039778,120]
[363842464,1748895976710,458.5173006,0.00039778,120]
[363842465,1748895980462,182.3422766,0.00039778,120]
[363842466,1748895981303,922.58222958,0.00039778,120]
[363842467,1748895982564,1473.4232206,0.00039778,120]
[363842468,1748895984427,205.74765991,0.00039778,120]
[363842469,1748895988216,786.72141518,0.00039778,120]
[363842470,1748896000321,472.8475647,0.00039778,120]
[363842471,1748896021200,170.94951585,0.00039778,120]
[363842472,1748896022253,227.92781482,0.00039778,120]
[363842473,1748896033531,2132.76100324,0.00039778,120]
[363842474,1748896049761,3235.09511173,0.00039778,120]
[363842475,1748896053091,241.20428471,0.00039778,120]
[363842476,1748896053454,703.9866547,0.00039778,120]
[363842477,1748896054216,805.60303042,0.00039778,120]
[363842478,1748896058451,2292.46471502,0.00039778,120]
[363842479,1748896059280,257.15332726,0.00039778,120]
[363842480,1748896063558,308.16636336,0.00039778,120]
[363842481,1748896065001,611.13160757,0.00039778,120]
[363842482,1748896067084,1288.87224215,0.00039778,120]
[363842484,1748896071755,1353.56372792,0.00039778,120]
[363842485,1748896072358,543.50029874,0.00039778,120]
[363842486,1748896078233,389.06481571,0.00039778,120]
[363842487,1748896081818,1336.98890221,0.00039778,120]
[363842488,1748896105478,195.69600825,0.00039778,120]
[363842489,1748896105742,568.0809196,0.00039778,120]
[363842490,1748896107778,1344.1691351,0.00039778,120]
[363842491,1748896110126,1449.83733865,0.00039778,120]
[363842492,1748896110215,500.0,0.00039778,120]
[363842493,1748896110271,1194.85664526,0.00039778,120]
[363842494,1748896111238,998.09968435,0.00039778,120]
[363842495,1748896111290,203.90417987,0.00039778,120]
[363842496,1748896111609,1313.98518264,0.00039778,120]
[363842497,1748896111917,1236.82635359,0.00039778,120]
[363842498,1748896112861,3130.78577794,0.00039778,120]
[363842499,1748896113044,420.34378279,0.00039778,120]
[363842500,1748896113793,3253.13652498,0.00039778,120]
[363842501,1748896115191,644.38326602,0.00039778,120]
[363842502,1748896115320,614.07517196,0.00039778,120]
[363842503,1748896115365,200.0,0.00039778,120]
[363842505,1748896118348,1494.839999,0.000151,2]
[363842506,1748896118993,450.08336951,0.00039778,120]
[363842507,1748896119997,2617.6266899,0.00039778,120]
[363842508,1748896120067,3275.79049292,0.00039778,120]
[363842518,1748896123721,264.98635164,0.00039778,120]
[363842519,1748896124972,177.2723105,0.00039778,120]
[363842582,1748896231858,-1200.0,0.00019999,2]
[363842584,1748896231870,-36407.6058704,0.0002,2]
[363842586,1748896231879,-4065.67582925,0.0002,2]
[363842587,1748896231887,-151.67,0.00020548,2]
[363842588,1748896231897,-1916.43868741,0.000209,4]
[363842589,1748896232021,-2276.19006919,0.000209,4]
[363842590,1748896232031,-645.17,0.00021132,2]
[363842591,1748896232040,-11862.23993081,0.00021147,2]
[363843124,1748896237913,-982.89999999,0.00021147,2]
[363843126,1748896237925,-790.11199992,0.00021147,2]
[363843131,1748896237970,-1312.77326823,0.00021147,2]
[363843133,1748896237980,-480.0,0.00021881,2]
[363843135,1748896237989,-234.42193177,0.00022,2]
[363843142,1748896238043,-15.57806823,0.00022,2]
[363843144,1748896238052,-1027.88193177,0.00022849,2]
[363843148,1748896238083,-929.97406823,0.00022849,2]
[363843150,1748896238092,-207.4,0.00022849,2]
[363843152,1748896238102,-300.0,0.00022862,2]
[363843154,1748896238111,-1253.0,0.00022863,2]
[363843156,1748896238120,-4075.0,0.00022863,2]
[363843158,1748896238130,-155.0,0.00022863,2]
[363843160,1748896238139,-2030.296672,0.00022904,2]
[363843162,1748896238149,-5212.01909659,0.00022958,2]
[363843164,1748896238158,-2105.41764886,0.00022959,2]
[363843166,1748896238168,-1265.33,0.00023,2]
[363843168,1748896238178,-2183.31810187,0.00023014,2]
[363843170,1748896238187,-2264.10087164,0.00023069,2]
[363843172,1748896238197,-1000.0,0.00023105,2]
[363843174,1748896238207,-390.01660389,0.00023124,2]
[363843176,1748896238216,-195.37,0.00023203,2]
[363843178,1748896238226,-300.41,0.00023212,2]
[363843180,1748896238236,-302.2,0.00023212,2]
[363843182,1748896238246,-300.06,0.00023212,2]
[363843184,1748896238256,-302.48,0.00023212,2]
[363843186,1748896238266,-301.59,0.00023212,2]
[363843188,1748896238275,-302.34,0.00023212,2]
[363843208,1748896238447,-301.32,0.00023212,2]
[363843210,1748896238460,-303.5,0.00023212,2]
[363843212,1748896238470,-305.51,0.00023212,2]
[363843214,1748896238480,-300.55,0.00023212,2]
[363843216,1748896238490,-300.65,0.00023212,2]
[363843218,1748896238500,-300.33,0.00023212,2]
[363843220,1748896238511,-305.46,0.00023212,2]
[363843222,1748896238521,-303.64,0.00023212,2]
[363843224,1748896238530,-305.05,0.00023212,2]
[363843226,1748896238539,-304.89,0.00023212,2]
[363843228,1748896238549,-301.23,0.00023212,2]
[363843230,1748896238558,-302.92,0.00023212,2]
[363843233,1748896238567,-300.51,0.00023212,2]
[363843235,1748896238576,-300.32,0.00023212,2]
[363843237,1748896238585,-3013.66952608,0.00023221,2]
[363843239,1748896238594,-303.12,0.00023251,2]
[363843241,1748896238604,-304.86,0.00023251,2]
[363843243,1748896238613,-500.0,0.00023262,2]
[363843245,1748896238623,-304.47,0.00023316,2]
[363843247,1748896238632,-302.74,0.00023316,2]
[363843249,1748896238642,-303.78,0.00023316,2]
[363843251,1748896238650,-304.01,0.00023316,2]
[363843253,1748896238660,-300.18,0.00023316,2]
[363843254,1748896238671,-301.34,0.00023316,2]
[363843256,1748896238680,-12516.14426746,0.00023373,2]
[363843258,1748896238691,-3200.39055492,0.00023373,2]
[363843261,1748896238701,-645.17,0.00023396,2]
[363843263,1748896238712,-38382.24341444,0.00023415,2]
[363843265,1748896238721,-1104.79,0.00023452,2]
[363843267,1748896238731,-66287.95703395,0.00023463,2]
[363843268,1748896238741,-1104.79,0.00023463,2]
[363843270,1748896238750,-33490.43,0.00023473,2]
[363843272,1748896238759,-500.0,0.00023473,2]
[363843274,1748896238769,-266.38635738,0.00023473,2]
[363843276,1748896238778,-500.0,0.00023473,2]
[363843278,1748896238787,-500.0,0.00023473,2]
[363843280,1748896238797,-500.0,0.00023473,2]
[363843282,1748896238809,-159.57465935,0.00023473,2]
[363843284,1748896238818,-159.62141804,0.00023473,2]
[363843286,1748896238827,-159.65233761,0.00023473,2]
[363843288,1748896238836,-500.0,0.00023473,2]
[363843290,1748896238847,-500.99432591,0.00023473,2]
[363843292,1748896238856,-500.0,0.00023473,2]
[363843294,1748896238866,-500.0,0.00023473,2]
[363843296,1748896238876,-500.0,0.00023473,2]
[363843298,1748896238885,-500.0,0.00023473,2]
[363843300,1748896238895,-305.67,0.00023494,2]
[363843302,1748896238904,-700.0,0.00023524,2]
[363843304,1748896238913,-500.0,0.00023524,2]
[363843306,1748896238923,-278.45,0.00023588,2]
[363843308,1748896238932,-300.55,0.00023594,2]
[363843310,1748896238941,-301.23,0.00023594,2]
[363843312,1748896238951,-304.64,0.00023594,2]
[363843314,1748896238963,-300.63,0.00023594,2]
[363843316,1748896238972,-300.7,0.00023594,2]
[363843318,1748896238981,-269.0,0.00023662,2]
[363843320,1748896238991,-303.25,0.00023683,2]
[363843322,1748896239000,-304.67,0.00023683,2]
[363843324,1748896239009,-301.22,0.00023683,2]
[363843326,1748896239019,-3200.3905548,0.0002369,2]
[363843328,1748896239029,-344.0,0.00023743,2]
[363843330,1748896239038,-166.71,0.00023775,2]
[363843332,1748896239047,-500.0,0.00023822,2]
[363843334,1748896239056,-2376.2907,0.00023973,10]
[363843336,1748896239066,-151.0,0.00023986,2]
[363843338,1748896239075,-151.0,0.00023986,2]
[363843341,1748896239084,-420.0,0.00023986,2]
[363843343,1748896239093,-301.28,0.00023988,2]
[363843345,1748896239101,-304.07,0.00024,2]
[363843347,1748896239111,-303.33,0.00024,2]
[363843348,1748896239120,-305.65,0.00024,2]
[363843351,1748896239129,-304.97,0.00024,2]
[363843353,1748896239139,-303.17,0.00024,2]
[363843354,1748896239148,-304.74,0.00024,2]
[363843356,1748896239158,-303.09,0.00024,2]
[363843359,1748896239168,-304.18,0.00024,2]
[363843361,1748896239177,-300.07,0.00024,2]
[363843363,1748896239186,-305.11,0.00024,2]
[363843365,1748896239196,-300.47,0.00024,2]
[363843367,1748896239206,-5000.0059264,0.00024,5]
[363843368,1748896239217,-2632.30652009,0.00024,2]
[363843370,1748896239226,-3200.3905548,0.00024007,2]
[363843372,1748896239236,-500.0,0.00024021,2]
[363843375,1748896239246,-500.0,0.00024021,2]
[363843376,1748896239255,-500.0,0.00024021,2]
[363843378,1748896239264,-500.0,0.00024021,2]
[363843380,1748896239273,-500.0,0.00024021,2]
[363843383,1748896239282,-151.0,0.00024041,2]
[363843385,1748896239293,-159.61746379,0.00024078,2]
[363843386,1748896239302,-682.99628818,0.00024087,2]
[363843388,1748896239311,-151.0,0.00024096,2]
[363843390,1748896239321,-500.0,0.00024111,2]
[363843392,1748896239330,-151.0,0.00024151,2]
[363843394,1748896239339,-175.97,0.00024158,2]
[363843396,1748896239348,-500.0,0.00024216,2]
[363843398,1748896239357,-215.0738,0.00024218,2]
[363843400,1748896239367,-2377.76707192,0.00024254,2]
[363843403,1748896239380,-1001.45079484,0.00024254,2]
[363843405,1748896239394,-9136.92640062,0.00024254,2]
[363843407,1748896239403,-1104.79,0.00024315,2]
[363843409,1748896239413,-3200.3905548,0.00024325,2]
[363843411,1748896239422,-984.15,0.00024325,2]
[363843413,1748896239432,-500.0,0.00024516,2]
[363843415,1748896239441,-1100.0,0.00024563,2]
[363843417,1748896239451,-700.0,0.0002462,2]
[363843419,1748896239463,-3200.3905548,0.00024642,2]
[363843421,1748896239473,-1000.0,0.00024658,2]
[363843423,1748896239484,-4144.27437793,0.00024692,2]
[363843425,1748896239494,-21343.12,0.00024693,2]
[363843427,1748896239503,-1100.0,0.00024731,2]
[363843429,1748896239513,-500.0,0.00024816,2]
[363843431,1748896239522,-1100.0,0.00024916,2]
[363843433,1748896239532,-204.0,0.00024929,2]
[363843435,1748896239541,-2965.0,0.00024949,6]
[363843437,1748896239551,-500.0,0.00024949,2]
[363843439,1748896239560,-1104.79,0.00024949,2]
[363843441,1748896239570,-3200.3905548,0.00024959,2]
[363843443,1748896239579,-500.0,0.00024987,2]
[363843445,1748896239589,-500.0,0.00024992,2]
[363843447,1748896239599,-1881.99999936,0.00025,7]
[363843449,1748896239608,-164.94730733,0.00025014,2]
[363843451,1748896239618,-500.0,0.00025045,2]
[363843453,1748896239628,-34588.4392,0.00025052,2]
[363843455,1748896239639,-743.8673,0.00025052,2]
[363843458,1748896239648,-1104.79,0.00025125,2]
[363843460,1748896239657,-12516.14426738,0.00025135,2]
[363843462,1748896239666,-152.0,0.00025135,3]
[363843464,1748896239675,-767.0,0.000252,2]
[363843466,1748896239685,-3200.3905548,0.00025276,2]
[363843468,1748896239694,-500.0,0.000253,2]
[363843470,1748896239703,-437.0,0.000253,2]
[363843472,1748896239716,-1100.0,0.00025352,2]
[363843474,1748896239726,-156.587,0.00025355,2]
[363843476,1748896239735,-500.0,0.000254,2]
[363843478,1748896239745,-302.72,0.00025422,2]
[363843480,1748896239754,-159.24,0.0002548,2]
[363843482,1748896239763,-237.0,0.000255,2]
[363843484,1748896239773,-375.0,0.000255,2]
[363843486,1748896239782,-500.0,0.00025541,2]
[363843488,1748896239792,-223.0315306,0.00025587,2]
[363843490,1748896239806,-3200.3905548,0.00025593,2]
[363843492,1748896239820,-645.17,0.0002566,2]
[363843494,1748896239830,-700.0,0.00025716,7]
[363843496,1748896239840,-510.41028548,0.00025716,7]
[363843498,1748896239851,-500.0,0.00025722,2]
[363843500,1748896239860,-152.0,0.00025734,4]
[363843503,1748896239870,-1100.0,0.00025796,2]
[363843506,1748896239882,-500.0,0.0002583,2]
[363843508,1748896239893,-570.936691,0.00025845,6]
[363843509,1748896239903,-1100.0,0.0002586,2]
[363843512,1748896239913,-1253.0,0.00025863,2]
[363843514,1748896239923,-4070.0,0.00025863,2]
[363843516,1748896239932,-155.0,0.00025863,2]
[363843517,1748896239942,-3200.3905548,0.00025911,2]
[363843520,1748896239952,-500.0,0.00025912,2]
[363843522,1748896239966,-2965.0,0.00025949,8]
[363843524,1748896239976,-1000.0,0.00025963,2]
[363843526,1748896239985,-151.0,0.0002597,7]
[363843528,1748896239995,-151.0,0.0002597,7]
[363843530,1748896240005,-151.0,0.0002597,7]
[363843531,1748896240014,-151.0,0.0002599,7]
[363843532,1748896240024,-151.0,0.0002599,7]
[363843533,1748896240033,-151.0,0.0002599,7]
[363843534,1748896240043,-1000.0,0.00025993,2]
[363843535,1748896240052,-151.0,0.00026,7]
[363843536,1748896240061,-151.0,0.00026,7]
[363843537,1748896240071,-151.0,0.00026,7]
[363843538,1748896240080,-151.0,0.00026,7]
[363843539,1748896240089,-151.0,0.00026,7]
[363843540,1748896240099,-151.0,0.00026,7]
[363843541,1748896240109,-151.0,0.00026,7]
[363843542,1748896240118,-151.0,0.00026,7]
[363843543,1748896240127,-12516.14426738,0.00026015,2]
[363843544,1748896240136,-153.23858538,0.00026047,2]
[363843545,1748896240145,-500.0,0.00026093,2]
[363843546,1748896240155,-1000.0,0.00026109,2]
[363843547,1748896240164,-159.6625614,0.00026132,2]
[363843548,1748896240173,-500.0,0.00026132,2]
[363843549,1748896240182,-159.64707666,0.00026132,2]
[363843550,1748896240192,-633.46096635,0.00026132,2]
[363843551,1748896240201,-500.0,0.00026132,2]
[363843552,1748896240214,-849.16559699,0.00026139,2]
[363843553,1748896240223,-500.0,0.00026154,2]
[363843554,1748896240232,-500.0,0.00026163,2]
[363843555,1748896240242,-458.5,0.000262,31]
[363843556,1748896240252,-458.5,0.000262,31]
[363843557,1748896240262,-458.5,0.000262,31]
[363843558,1748896240272,-458.5,0.000262,31]
[363843559,1748896240282,-458.5,0.000262,31]
[363843560,1748896240291,-458.5,0.000262,31]
[363843561,1748896240300,-458.5,0.000262,31]
[363843562,1748896240310,-458.5,0.000262,31]
[363843563,1748896240319,-458.5,0.000262,31]
[363843564,1748896240328,-458.5,0.000262,31]
[363843565,1748896240338,-458.5,0.000262,31]
[363843571,1748896240471,-458.5,0.000262,31]
[363843573,1748896240484,-458.5,0.000262,31]
[363843574,1748896240493,-458.5,0.000262,31]
[363843576,1748896240503,-458.5,0.000262,31]
[363843578,1748896240512,-458.5,0.000262,31]
[363843579,1748896240521,-3200.3905548,0.00026228,2]
[363843580,1748896240532,-400.0,0.000263,2]
[363843581,1748896240541,-152.0,0.00026334,5]
[363843582,1748896240551,-151.0,0.00026373,7]
[363843583,1748896240560,-151.0,0.00026373,7]
[363843584,1748896240570,-151.0,0.00026373,7]
[363843585,1748896240579,-151.0,0.00026373,7]
[363843586,1748896240589,-151.0,0.0002638,7]
[363843587,1748896240599,-161.565653,0.0002638,7]
[363843588,1748896240609,-161.565653,0.0002638,7]
[363843589,1748896240618,-160.582067,0.00026382,7]
[363843590,1748896240627,-151.0,0.00026382,7]
[363843591,1748896240637,-151.0,0.00026382,7]
[363843592,1748896240646,-151.0,0.00026382,7]
[363843593,1748896240656,-151.0,0.00026382,7]
[363843594,1748896240665,-151.0,0.00026382,7]
[363843595,1748896240675,-151.0,0.0002639,7]
[363843596,1748896240684,-151.0,0.0002639,7]
[363843597,1748896240693,-151.0,0.0002639,7]
[363843598,1748896240703,-151.0,0.0002639,7]
[363843599,1748896240714,-151.0,0.0002639,7]
[363843600,1748896240723,-151.0,0.000264,7]
[363843601,1748896240732,-151.0,0.000264,7]
[363843602,1748896240742,-164.824606,0.000264,7]
[363843603,1748896240751,-151.0,0.000264,7]
[363843604,1748896240760,-151.0,0.000264,7]
[363843605,1748896240770,-151.0,0.000264,7]
[363843606,1748896240783,-151.0,0.000264,7]
[363843607,1748896240792,-185.745807,0.000264,7]
[363843608,1748896240805,-1232.286766,0.000264,7]
[363843609,1748896240815,-1232.286766,0.000264,7]
[363843610,1748896240824,-150.0,0.00026433,2]